fUSD/lending_fUSD_20251017
["ID","MTS","AMOUNT","RATE_DAILY","PERIOD"]
[391617766,1760706697651,-500.0,0.00025205,2]
[391617767,1760706697663,-1444.32,0.00025205,2]
[391617768,1760706697675,-500.0,0.00025205,2]
[391617769,1760706697686,-500.0,0.00025205,2]
[391617770,1760706697697,-500.0,0.00025205,2]
[391617771,1760706697708,-500.0,0.00025205,2]
[391617772,1760706697719,-500.0,0.00025205,2]
[391617773,1760706697730,-500.0,0.00025205,2]
[391617774,1760706697740,-500.0,0.00025205,2]
[391617775,1760706697754,-2291.56,0.00025205,2]
[391617776,1760706697765,-500.0,0.00025205,2]
[391617777,1760706697776,-618.56,0.00025205,2]
[391617778,1760706697788,-500.0,0.00025205,2]
[391617779,1760706697798,-500.0,0.00025205,2]
[391617780,1760706697810,-500.0,0.00025205,2]
[391617781,1760706697821,-500.0,0.00025205,2]
[391617782,1760706697832,-342.01115542,0.00025205,2]
[391617783,1760706697843,-500.0,0.00025205,2]
[391617784,1760706697854,-3283.98,0.00025205,2]
[391617785,1760706697864,-500.0,0.00025205,2]
[391617786,1760706697875,-1615.68,0.00025205,2]
[391617787,1760706697886,-500.0,0.00025205,2]
[391617788,1760706697897,-500.0,0.00025205,2]
[391617789,1760706697908,-583.81871619,0.00025205,2]
[391617790,1760706697919,-500.0,0.00025205,2]
[391617791,1760706697929,-500.0,0.00025205,2]
[391617792,1760706697944,-4383.35,0.00025205,2]
[391617793,1760706697956,-195.58951726,0.00025205,2]
[391617794,1760706697967,-583.84,0.00025205,2]
[391617795,1760706697980,-504.49515593,0.00025205,2]
[391617796,1760706697992,-6598.67,0.00025205,2]
[391617797,1760706698005,-207.99416182,0.00025205,2]
[391617798,1760706698019,-543.59552556,0.00025205,2]
[391617799,1760706698032,-1559.75,0.00025205,2]
[391617800,1760706698043,-939.83,0.00025205,2]
[391617801,1760706698054,-457.41416845,0.00025205,2]
[391617802,1760706698065,-500.0,0.00025205,2]
[391617803,1760706698077,-500.0,0.00025205,2]
[391617804,1760706698088,-500.0,0.00025205,2]
[391617805,1760706698100,-500.0,0.00025205,2]
[391617806,1760706698111,-367.73440615,0.00025205,2]
[391617807,1760706698122,-500.0,0.00025205,2]
[391617808,1760706698133,-500.0,0.00025205,2]
[391617809,1760706698143,-537.97173408,0.00025205,2]
[391617810,1760706698154,-558.21,0.00025205,2]
[391617811,1760706698165,-500.0,0.00025205,2]
[391617812,1760706698175,-500.0,0.00025205,2]
[391617813,1760706698186,-500.0,0.00025205,2]
[391617814,1760706698197,-500.0,0.00025205,2]
[391617815,1760706698208,-500.0,0.00025205,2]
[391617816,1760706698219,-440.22995277,0.00025205,2]
[391617817,1760706698230,-500.0,0.00025205,2]
[391617818,1760706698242,-500.0,0.00025205,2]
[391617819,1760706698254,-1355.04,0.00025205,2]
[391617820,1760706698265,-203.52376219,0.00025205,2]
[391617821,1760706699096,-296.47623781,0.00025205,2]
[391617822,1760706699107,-501.57912099,0.00025205,2]
[391617823,1760706699118,-500.0,0.00025205,2]
[391617824,1760706699128,-500.40926455,0.00025205,2]
[391617825,1760706699138,-1265.72,0.00025205,2]
[391617826,1760706699148,-500.0,0.00025205,2]
[391617827,1760706699158,-500.0,0.00025205,2]
[391617828,1760706699169,-106.75107126,0.00025205,2]
[391617829,1760706699202,-151.0,0.0001499,2]
[391617830,1760706699212,-393.24892874,0.00025205,2]
[391617831,1760706699223,-500.0,0.00025205,2]
[391617832,1760706699233,-500.0,0.00025205,2]
[391617833,1760706699243,-384.24155547,0.00025205,2]
[391617834,1760706699587,-219.387238,0.00014989,2]
[391617835,1760706699596,-151.0,0.00014989,2]
[391617836,1760706699606,-151.0,0.00014989,2]
[391617837,1760706699615,-152.217191,0.0001499,2]
[391617838,1760706699625,-151.0,0.0001499,2]
[391617839,1760706699635,-151.0,0.0001499,2]
[391617840,1760706699645,-151.0,0.0001499,2]
[391617841,1760706699654,-115.75844453,0.00025205,2]
[391617842,1760706699664,-300.27,0.00025244,2]
[391617843,1760706699674,-1091.0,0.0002532,2]
[391617844,1760706699683,-2220.07332795,0.00025373,4]
[391617845,1760706699693,-5637.01042964,0.00025379,2]
[391617846,1760706699702,-3000.0,0.00025479,2]
[391617847,1760706699711,-155.601299,0.00025479,2]
[391617848,1760706699721,-172.736519,0.00025479,2]
[391617849,1760706699731,-1266.688585,0.00025479,2]
[391617850,1760706699740,-36735.938127,0.00025479,2]
[391617851,1760706699750,-47887.695419,0.00025479,2]
[391617852,1760706699761,-1750.514599,0.00025479,2]
[391617853,1760706699771,-29588.510886,0.00025479,2]
[391617854,1760706699780,-258.78607809,0.00025479,2]
[391617855,1760706699790,-500.0,0.00025479,2]
[391617856,1760706699799,-500.0,0.00025479,2]
[391617857,1760706699809,-500.0,0.00025479,2]
[391617858,1760706699818,-500.0,0.00025479,2]
[391617859,1760706699828,-500.0,0.00025479,2]
[391617860,1760706699838,-480.91642837,0.00025479,2]
[391617861,1760706699848,-500.0,0.00025479,2]
[391617862,1760706699858,-500.0,0.00025479,2]
[391617863,1760706699867,-500.0,0.00025479,2]
[391617864,1760706699877,-500.0,0.00025479,2]
[391617865,1760706699887,-402.17344832,0.00025479,2]
[391617866,1760706699897,-500.0,0.00025479,2]
[391617867,1760706699906,-500.0,0.00025479,2]
[391617868,1760706699916,-505.42917711,0.00025479,2]
[391617869,1760706699926,-500.0,0.00025479,2]
[391617870,1760706699936,-174.99515412,0.00025479,2]
[391617871,1760706699949,-500.0,0.00025479,2]
[391617872,1760706699959,-500.0,0.00025479,2]
[391617873,1760706699969,-564.49365185,0.00025479,2]
[391617874,1760706699979,-1160.36,0.00025479,2]
[391617875,1760706699989,-500.0,0.00025479,2]
[391617876,1760706699999,-705.2,0.00025479,2]
[391617877,1760706700010,-273.36267843,0.00025479,2]
[391617878,1760706700021,-500.0,0.00025479,2]
[391617879,1760706700031,-175.21630211,0.00025479,2]
[391617880,1760706700041,-1150.12,0.00025479,2]
[391617881,1760706700051,-500.0,0.00025479,2]
[391617882,1760706700060,-500.0,0.00025479,2]
[391617883,1760706700070,-210.80642982,0.00025479,2]
[391617884,1760706700080,-500.09,0.00025479,2]
[391617885,1760706700090,-500.0,0.00025479,2]
[391617886,1760706700099,-500.0,0.00025479,2]
[391617887,1760706700109,-500.0,0.00025479,2]
[391617888,1760706700121,-500.0,0.00025479,2]
[391617889,1760706700130,-624.28,0.00025479,2]
[391617890,1760706700140,-509.91181519,0.00025479,2]
[391617891,1760706700149,-500.0,0.00025479,2]
[391617892,1760706700159,-500.0,0.00025479,2]
[391617893,1760706700169,-635.18,0.00025479,2]
[391617894,1760706700180,-504.10369482,0.00025479,2]
[391617895,1760706700189,-500.0,0.00025479,2]
[391617896,1760706700199,-738.71,0.00025479,2]
[391617897,1760706700209,-500.0,0.00025479,2]
[391617898,1760706700219,-875.04,0.00025479,2]
[391617899,1760706700228,-500.0,0.00025479,2]
[391617900,1760706700237,-2590.26,0.00025479,2]
[391617901,1760706700247,-589.63,0.00025479,2]
[391617902,1760706700257,-232.36311727,0.00025479,2]
[391617903,1760706700266,-500.0,0.00025479,2]
[391617904,1760706700276,-500.0,0.00025479,2]
[391617905,1760706700286,-1711.57,0.00025479,2]
[391617906,1760706700295,-221.70526093,0.00025479,2]
[391617907,1760706700305,-549.57,0.00025479,2]
[391617908,1760706700314,-500.0,0.00025479,2]
[391617909,1760706700325,-500.0,0.00025479,2]
[391617910,1760706700334,-500.0,0.00025479,2]
[391617911,1760706700343,-500.0,0.00025479,2]
[391617912,1760706700353,-500.0,0.00025479,2]
[391617913,1760706700363,-500.0,0.00025479,2]
[391617914,1760706700372,-500.0,0.00025479,2]
[391617915,1760706700382,-500.0,0.00025479,2]
[391617916,1760706700392,-500.0,0.00025479,2]
[391617917,1760706700401,-500.0,0.00025479,2]
[391617918,1760706700412,-635.64406881,0.00025479,2]
[391617919,1760706700422,-371.40775721,0.00025479,2]
[391617920,1760706700432,-599.72,0.00025479,2]
[391617921,1760706700442,-500.0,0.00025479,2]
[391617922,1760706700453,-500.0,0.00025479,2]
[391617923,1760706700465,-500.0,0.00025479,2]
[391617924,1760706700476,-500.0,0.00025479,2]
[391617925,1760706700485,-926.78,0.00025479,2]
[391617926,1760706700495,-500.0,0.00025479,2]
[391617927,1760706700505,-500.0,0.00025479,2]
[391617928,1760706700515,-500.0,0.00025479,2]
[391617929,1760706700524,-500.0,0.00025479,2]
[391617930,1760706700535,-500.0,0.00025479,2]
[391617931,1760706700544,-500.0,0.00025479,2]
[391617932,1760706700553,-192.13787179,0.00025479,2]
[391617933,1760706700563,-500.0,0.00025479,2]
[391617934,1760706700572,-500.0,0.00025479,2]
[391617935,1760706700582,-463.77278803,0.00025479,2]
[391617936,1760706700591,-500.0,0.00025479,2]
[391617937,1760706700600,-500.0,0.00025479,2]
[391617938,1760706700610,-500.0,0.00025479,2]
[391617939,1760706700619,-500.0,0.00025479,2]
[391617940,1760706700629,-500.0,0.00025479,2]
[391617941,1760706700638,-1817.2,0.00025479,2]
[391617942,1760706700648,-500.0,0.00025479,2]
[391617943,1760706700657,-500.0,0.00025479,2]
[391617944,1760706700667,-500.0,0.00025479,2]
[391617945,1760706700677,-500.0,0.00025479,2]
[391617946,1760706700686,-1098.2,0.00025479,2]
[391617947,1760706700696,-500.0,0.00025479,2]
[391617948,1760706700705,-500.0,0.00025479,2]
[391617949,1760706700715,-500.0,0.00025479,2]
[391617950,1760706700725,-3442.59,0.00025479,2]
[391617951,1760706700735,-324.33994151,0.00025479,2]
[391617952,1760706700745,-671.89,0.00025479,2]
[391617953,1760706700755,-457.99463658,0.00025479,2]
[391617954,1760706700764,-2857.65,0.00025479,2]
[391617955,1760706700774,-500.0,0.00025479,2]
[391617956,1760706700783,-500.0,0.00025479,2]
[391617957,1760706700792,-500.0,0.00025479,2]
[391617958,1760706700802,-302.4084368,0.00025479,2]
[391617959,1760706700812,-500.0,0.00025479,2]
[391617960,1760706700821,-1873.78,0.00025479,2]
[391617961,1760706700831,-500.0,0.00025479,2]
[391617962,1760706700841,-500.0,0.00025479,2]
[391617963,1760706700851,-3177.57,0.00025479,2]
[391617964,1760706700860,-770.05,0.00025479,2]
[391617965,1760706700869,-500.0,0.00025479,2]
[391617966,1760706700879,-500.0,0.00025479,2]
[391617967,1760706700888,-270.74548663,0.00025479,2]
[391617968,1760706700897,-217.42029736,0.00025479,2]
[391617969,1760706700907,-227.93896001,0.00025479,2]
[391617970,1760706700916,-500.0,0.00025479,2]
[391617971,1760706700925,-500.0,0.00025479,2]
[391617972,1760706700935,-500.0,0.00025479,2]
[391617973,1760706700948,-500.0,0.00025479,2]
[391617974,1760706700958,-500.0,0.00025479,2]
[391617975,1760706700967,-543.44,0.00025479,2]
[391617976,1760706700977,-443.20065875,0.00025479,2]
[391617977,1760706700987,-500.0,0.00025479,2]
[391617978,1760706700997,-500.0,0.00025479,2]
[391617979,1760706701007,-1701.03,0.00025479,2]
[391617980,1760706701019,-500.0,0.00025479,2]
[391617981,1760706701028,-1140.2,0.00025479,2]
[391617982,1760706701039,-500.0,0.00025479,2]
[391617983,1760706701048,-1288.92,0.00025479,2]
[391617984,1760706701058,-500.0,0.00025479,2]
[391617985,1760706701067,-500.0,0.00025479,2]
[391617986,1760706701077,-500.0,0.00025479,2]
[391617987,1760706701086,-500.0,0.00025479,2]
[391617988,1760706701096,-1387.94,0.00025479,2]
[391617989,1760706701105,-3652.14,0.00025479,2]
[391617990,1760706701115,-500.0,0.00025479,2]
[391617991,1760706701124,-183.21353331,0.00025479,2]
[391617992,1760706701134,-500.0,0.00025479,2]
[391617993,1760706701144,-500.0,0.00025479,2]
[391617994,1760706701154,-526.97089818,0.00025479,2]
[391617995,1760706701163,-1998.52,0.00025479,2]
[391617996,1760706701173,-511.22,0.00025479,2]
[391617997,1760706701182,-500.0,0.00025479,2]
[391617998,1760706701192,-780.1,0.00025479,2]
[391617999,1760706701201,-500.0,0.00025479,2]
[391618000,1760706701212,-500.0,0.00025479,2]
[391618001,1760706701222,-500.0,0.00025479,2]
[391618002,1760706701232,-3252.66,0.00025479,2]
[391618003,1760706701330,-500.0,0.00025479,2]
[391618004,1760706701341,-500.0,0.00025479,2]
[391618005,1760706701350,-500.0,0.00025479,2]
[391618006,1760706701360,-500.0,0.00025479,2]
[391618007,1760706701369,-500.0,0.00025479,2]
[391618008,1760706701379,-500.0,0.00025479,2]
[391618009,1760706701388,-500.0,0.00025479,2]
[391618010,1760706701397,-500.0,0.00025479,2]
[391618011,1760706701407,-500.0,0.00025479,2]
[391618012,1760706701416,-500.0,0.00025479,2]
[391618013,1760706701427,-540.26825432,0.00025479,2]
[391618014,1760706701436,-500.0,0.00025479,2]
[391618015,1760706701445,-500.0,0.00025479,2]
[391618016,1760706701455,-500.0,0.00025479,2]
[391618017,1760706701465,-256.02332051,0.00025479,2]
[391618018,1760706701475,-1046.4,0.00025479,2]
[391618019,1760706701484,-500.0,0.00025479,2]
[391618020,1760706701493,-1485.37,0.00025479,2]
[391618021,1760706701502,-2359.88,0.00025479,2]
[391618022,1760706701512,-1140.79,0.00025479,2]
[391618023,1760706701521,-500.0,0.00025479,2]
[391618024,1760706701531,-500.0,0.00025479,2]
[391618025,1760706701540,-500.0,0.00025479,2]
[391618026,1760706701551,-522.5,0.00025479,2]
[391618027,1760706701561,-970.74,0.00025479,2]
[391618028,1760706701571,-500.0,0.00025479,2]
[391618029,1760706701580,-500.0,0.00025479,2]
[391618030,1760706701590,-500.0,0.00025479,2]
[391618031,1760706701599,-507.36,0.00025479,2]
[391618032,1760706701609,-500.0,0.00025479,2]
[391618033,1760706701618,-449.19518406,0.00025479,2]
[391618034,1760706701627,-500.0,0.00025479,2]
[391618035,1760706701636,-500.0,0.00025479,2]
[391618036,1760706701646,-500.0,0.00025479,2]
[391618037,1760706701656,-500.0,0.00025479,2]
[391618038,1760706701666,-500.0,0.00025479,2]
[391618039,1760706701675,-500.0,0.00025479,2]
[391618040,1760706701684,-693.35,0.00025479,2]
[391618041,1760706701693,-644.5,0.00025479,2]
[391618042,1760706701703,-500.0,0.00025479,2]
[391618043,1760706701713,-1506.26,0.00025479,2]
[391618044,1760706701723,-668.62,0.00025479,2]
[391618045,1760706701732,-500.0,0.00025479,2]
[391618046,1760706701742,-520.68024088,0.00025479,2]
[391618047,1760706701751,-693.02,0.00025479,2]
[391618048,1760706701761,-160.47489151,0.00025479,2]
[391618049,1760706701770,-500.0,0.00025479,2]
[391618050,1760706701779,-500.0,0.00025479,2]
[391618051,1760706701789,-500.0,0.00025479,2]
[391618052,1760706701799,-1249.99,0.00025479,2]
[391618053,1760706701808,-500.0,0.00025479,2]
[391618054,1760706701818,-500.0,0.00025479,2]
[391618055,1760706701827,-1494.42,0.00025479,2]
[391618056,1760706701837,-500.0,0.00025479,2]
[391618057,1760706701847,-611.79724001,0.00025479,2]
[391618058,1760706701856,-500.0,0.00025479,2]
[391618059,1760706701866,-500.0,0.00025479,2]
[391618060,1760706701875,-500.0,0.00025479,2]
[391618061,1760706701884,-300.17455549,0.00025479,2]
[391618062,1760706701893,-500.0,0.00025479,2]
[391618063,1760706701903,-500.0,0.00025479,2]
[391618064,1760706701912,-1421.83,0.00025479,2]
[391618065,1760706701922,-500.0,0.00025479,2]
[391618066,1760706701931,-393.74288956,0.00025479,2]
[391618067,1760706701945,-553.15,0.00025479,2]
[391618068,1760706701954,-589.07805578,0.00025479,2]
[391618069,1760706701964,-500.0,0.00025479,2]
[391618070,1760706701973,-178.91586817,0.00025479,2]
[391618071,1760706701984,-500.0,0.00025479,2]
[391618072,1760706701994,-500.0,0.00025479,2]
[391618073,1760706702005,-500.0,0.00025479,2]
[391618074,1760706702017,-840.86,0.00025479,2]
[391618075,1760706702026,-500.0,0.00025479,2]
[391618076,1760706702036,-500.0,0.00025479,2]
[391618077,1760706702046,-500.0,0.00025479,2]
[391618078,1760706702056,-500.0,0.00025479,2]
[391618079,1760706702066,-500.0,0.00025479,2]
[391618080,1760706702075,-500.0,0.00025479,2]
[391618081,1760706702086,-1604.59,0.00025479,2]
[391618082,1760706702096,-293.94180167,0.00025479,2]
[391618083,1760706702106,-500.0,0.00025479,2]
[391618084,1760706702116,-500.0,0.00025479,2]
[391618085,1760706702126,-500.0,0.00025479,2]
[391618086,1760706702136,-168.54331305,0.00025479,2]
[391618087,1760706702147,-500.0,0.00025479,2]
[391618088,1760706702157,-500.0,0.00025479,2]
[391618089,1760706702167,-218.75703805,0.00025479,2]
[391618090,1760706702177,-604.33676195,0.00025479,2]
[391618091,1760706702188,-500.0,0.00025479,2]
[391618092,1760706702198,-620.21,0.00025479,2]
[391618093,1760706702209,-500.0,0.00025479,2]
[391618094,1760706702218,-500.0,0.00025479,2]
[391618095,1760706702228,-2000.0,0.00025479,7]
[391618096,1760706702238,-242.0219001,0.00025479,2]
[391618097,1760706702247,-500.0,0.00025479,2]
[391618098,1760706702258,-500.0,0.00025479,2]
[391618099,1760706702267,-500.0,0.00025479,2]
[391618100,1760706702277,-502.23401575,0.00025479,2]
[391618101,1760706702286,-500.0,0.00025479,2]
[391618102,1760706702296,-500.0,0.00025479,2]
[391618103,1760706702306,-500.0,0.00025479,2]
[391618104,1760706702315,-501.25093077,0.00025479,2]
[391618105,1760706702324,-500.0,0.00025479,2]
[391618106,1760706702333,-500.0,0.00025479,2]
[391618107,1760706702343,-275.02267034,0.00025479,2]
[391618108,1760706702352,-633.38,0.00025479,2]
[391618109,1760706702361,-500.0,0.00025479,2]
[391618110,1760706702370,-500.0,0.00025479,2]
[391618111,1760706702379,-500.0,0.00025479,2]
[391618112,1760706702388,-666.66,0.00025479,2]
[391618113,1760706702397,-500.0,0.00025479,2]
[391618114,1760706702407,-500.0,0.00025479,2]
[391618115,1760706702416,-500.0,0.00025479,2]
[391618116,1760706702426,-500.0,0.00025479,2]
[391618117,1760706702435,-712.19,0.00025479,2]
[391618118,1760706702445,-522.11726612,0.00025479,2]
[391618119,1760706702454,-706.74,0.00025479,2]
[391618120,1760706702463,-500.0,0.00025479,2]
[391618121,1760706702472,-500.0,0.00025479,2]
[391618122,1760706702482,-500.0,0.00025479,2]
[391618123,1760706702492,-652.89,0.00025479,2]
[391618124,1760706702501,-2526.26,0.00025479,2]
[391618125,1760706702512,-500.0,0.00025479,2]
[391618126,1760706702520,-500.0,0.00025479,2]
[391618127,1760706702530,-404.41910063,0.00025479,2]
[391618128,1760706702540,-500.0,0.00025479,2]
[391618129,1760706702549,-500.0,0.00025479,2]
[391618130,1760706702558,-500.0,0.00025479,2]
[391618131,1760706702567,-1026.4,0.00025479,2]
[391618132,1760706702576,-500.0,0.00025479,2]
[391618133,1760706702586,-720.5,0.00025479,2]
[391618134,1760706702595,-500.0,0.00025479,2]
[391618135,1760706702604,-500.0,0.00025479,2]
[391618136,1760706702612,-500.0,0.00025479,2]
[391618137,1760706702621,-500.0,0.00025479,2]
[391618138,1760706702630,-309.05279234,0.00025479,2]
[391618139,1760706702639,-1119.53,0.00025479,2]
[391618140,1760706702648,-198.55424579,0.00025479,2]
[391618141,1760706702658,-445.8439588,0.00025479,2]
[391618142,1760706702667,-500.0,0.00025479,2]
[391618143,1760706702676,-500.0,0.00025479,2]
[391618144,1760706702684,-400.06869535,0.00025479,2]
[391618145,1760706702693,-1000.0,0.00025479,2]
[391618146,1760706702702,-500.0,0.00025479,2]
[391618147,1760706702710,-500.0,0.00025479,2]
[391618148,1760706702720,-500.0,0.00025479,2]
[391618149,1760706702729,-500.0,0.00025479,2]
[391618150,1760706702738,-2452.62,0.00025479,2]
[391618151,1760706702748,-629.56,0.00025479,2]
[391618152,1760706702756,-494.18714288,0.00025479,2]
[391618153,1760706702766,-500.0,0.00025479,2]
[391618154,1760706702776,-500.0,0.00025479,2]
[391618155,1760706702785,-500.0,0.00025479,2]
[391618156,1760706702794,-500.0,0.00025479,2]
[391618157,1760706702802,-642.79,0.00025479,2]
[391618158,1760706702812,-500.0,0.00025479,2]
[391618159,1760706702821,-500.0,0.00025479,2]
[391618160,1760706702830,-500.0,0.00025479,2]
[391618161,1760706702839,-500.0,0.00025479,2]
[391618162,1760706702848,-631.48696543,0.00025479,2]
[391618163,1760706702857,-316.88711564,0.00025479,2]
[391618164,1760706702866,-2976.2,0.00025479,2]
[391618165,1760706702876,-910.91,0.00025479,2]
[391618166,1760706702886,-503.11262232,0.00025479,2]
[391618167,1760706702895,-500.0,0.00025479,2]
[391618168,1760706702904,-500.0,0.00025479,2]
[391618169,1760706702912,-500.0,0.00025479,2]
[391618170,1760706702921,-500.0,0.00025479,2]
[391618171,1760706702931,-500.0,0.00025479,2]
[391618172,1760706702944,-500.0,0.00025479,2]
[391618173,1760706702953,-530.71,0.00025479,2]
[391618174,1760706702963,-500.0,0.00025479,2]
[391618175,1760706702971,-500.0,0.00025479,2]
[391618176,1760706702981,-500.0,0.00025479,2]
[391618177,1760706702990,-500.0,0.00025479,2]
[391618178,1760706702999,-566.55,0.00025479,2]
[391618179,1760706703009,-500.0,0.00025479,2]
[391618180,1760706703019,-500.53207947,0.00025479,2]
[391618181,1760706703028,-500.0,0.00025479,2]
[391618182,1760706703038,-549.85,0.00025479,2]
[391618183,1760706703048,-500.0,0.00025479,2]
[391618184,1760706703057,-500.0,0.00025479,2]
[391618185,1760706703066,-500.0,0.00025479,2]
[391618186,1760706703076,-2897.84,0.00025479,2]
[391618187,1760706703086,-500.0,0.00025479,2]
[391618188,1760706703095,-500.0,0.00025479,2]
[391618189,1760706703105,-500.0,0.00025479,2]
[391618190,1760706703115,-1306.87,0.00025479,2]
[391618191,1760706703124,-544.51334855,0.00025479,2]
[391618192,1760706703133,-500.0,0.00025479,2]
[391618193,1760706703142,-3268.99,0.00025479,2]
[391618194,1760706703152,-300.0,0.00025479,2]
[391618195,1760706703162,-201.29735148,0.00025479,2]
[391618196,1760706703172,-500.0,0.00025479,2]
[391618197,1760706703182,-500.0,0.00025479,2]
[391618198,1760706703192,-500.0,0.00025479,2]
[391618199,1760706703202,-500.0,0.00025479,2]
[391618200,1760706703213,-500.0,0.00025479,2]
[391618201,1760706703223,-5615.98,0.00025479,2]
[391618202,1760706703232,-500.0,0.00025479,2]
[391618204,1760706703242,-500.0,0.00025479,2]
[391618205,1760706703252,-626.70446276,0.00025479,2]
[391618206,1760706703263,-500.0,0.00025479,2]
[391618207,1760706703273,-1945.5,0.00025479,2]
[391618208,1760706703283,-500.0,0.00025479,2]
[391618209,1760706703292,-346.03277637,0.00025479,2]
[391618210,1760706703304,-1073.41,0.00025479,2]
[391618211,1760706703321,-500.0,0.00025479,2]
[391618212,1760706703343,-500.0,0.00025479,2]
[391618213,1760706703353,-406.46758997,0.00025479,2]
[391618214,1760706703363,-500.0,0.00025479,2]
[391618215,1760706703372,-514.77424712,0.00025479,2]
[391618216,1760706703381,-500.0,0.00025479,2]
[391618217,1760706703391,-500.0,0.00025479,2]
[391618218,1760706703400,-500.0,0.00025479,2]
[391618219,1760706703410,-501.568691,0.00025479,2]
[391618220,1760706703419,-214.59705125,0.00025479,2]
[391618221,1760706703428,-500.0,0.00025479,2]
[391618222,1760706703437,-500.0,0.00025479,2]
[391618223,1760706703447,-500.0,0.00025479,2]
[391618224,1760706703456,-500.0,0.00025479,2]
[391618225,1760706703465,-2861.79,0.00025479,2]
[391618226,1760706703475,-500.0,0.00025479,2]
[391618227,1760706703485,-1625.42,0.00025479,2]
[391618228,1760706703494,-500.0,0.00025479,2]
[391618229,1760706703504,-526.31,0.00025479,2]
[391618230,1760706703514,-183.36915395,0.00025479,2]
[391618231,1760706703524,-500.0,0.00025479,2]
[391618232,1760706703533,-500.0,0.00025479,2]
[391618233,1760706703542,-500.0,0.00025479,2]
[391618234,1760706703552,-500.0,0.00025479,2]
[391618235,1760706703561,-500.0,0.00025479,2]
[391618236,1760706703571,-500.0,0.00025479,2]
[391618237,1760706703580,-1444.32,0.00025479,2]
[391618238,1760706703590,-500.0,0.00025479,2]
[391618239,1760706703600,-500.0,0.00025479,2]
[391618240,1760706703609,-500.0,0.00025479,2]
[391618241,1760706703618,-545.52951032,0.00025479,2]
[391618242,1760706703627,-500.0,0.00025479,2]
[391618243,1760706703636,-500.0,0.00025479,2]
[391618244,1760706703645,-2291.56,0.00025479,2]
[391618245,1760706703655,-500.0,0.00025479,2]
[391618246,1760706703664,-618.56,0.00025479,2]
[391618247,1760706703673,-500.0,0.00025479,2]
[391618248,1760706703683,-500.0,0.00025479,2]
[391618249,1760706703692,-500.0,0.00025479,2]
[391618250,1760706703700,-500.0,0.00025479,2]
[391618251,1760706703710,-500.0,0.00025479,2]
[391618252,1760706703719,-3283.98,0.00025479,2]
[391618253,1760706703728,-500.0,0.00025479,2]
[391618254,1760706703737,-1615.68,0.00025479,2]
[391618255,1760706703746,-500.0,0.00025479,2]
[391618256,1760706703755,-500.0,0.00025479,2]
[391618257,1760706703765,-500.0,0.00025479,2]
[391618258,1760706703775,-509.47128128,0.00025479,2]
[391618259,1760706703785,-4383.35,0.00025479,2]
[391618260,1760706703794,-583.84,0.00025479,2]
[391618261,1760706703804,-6598.67,0.00025479,2]
[391618262,1760706703813,-1559.75,0.00025479,2]
[391618263,1760706703822,-939.83,0.00025479,2]
[391618264,1760706703831,-500.0,0.00025479,2]
[391618265,1760706703841,-500.0,0.00025479,2]
[391618266,1760706703851,-500.0,0.00025479,2]